bitfinex/quotes_BTCUSD_20250709
["timestamp","ask_amount","ask_price","bid_price","bid_amount"]
[1752091896661,0.16837286,111370.0,111360.0,0.00404]
[1752091896861,0.16837238,111370.0,111360.0,0.19261758]
[1752091897061,0.5254048,111370.0,111360.0,0.00404]
[1752091897270,0.5641735,111370.0,111360.0,0.00404]
[1752091897477,0.5141735,111370.0,111360.0,0.00404]
[1752091897716,0.32561286,111370.0,111360.0,0.00404]
[1752091897918,0.32561278,111370.0,111360.0,0.01301988]
[1752091898114,0.35765544,111370.0,111360.0,0.20159722]
[1752091898316,0.38117496,111370.0,111360.0,0.30660496]
[1752091898514,0.39015387,111370.0,111360.0,0.10804766]
[1752091898767,0.62325693,111370.0,111360.0,0.10848187]
[1752091898962,1.31322706,111370.0,111350.0,0.13166167]
[1752091899143,0.31563521,111350.0,111340.0,4e-05]
[1752091899427,0.56423214,111350.0,111340.0,4e-05]
[1752091899839,0.61423214,111350.0,111340.0,4e-05]
[1752091902101,0.51423214,111350.0,111340.0,0.00104]
[1752091902266,0.51781129,111350.0,111340.0,0.00104]
[1752091902474,0.48711129,111350.0,111340.0,0.00104]
[1752091902911,0.33003129,111350.0,111340.0,0.00104]
[1752091903113,0.48707129,111350.0,111340.0,0.00104]
[1752091904211,0.56923258,111350.0,111340.0,0.00104]
[1752091904416,0.72623258,111350.0,111340.0,0.00104]
[1752091907324,0.72615258,111350.0,111340.0,0.00104]
[1752091909317,0.72607258,111350.0,111340.0,0.00104]
[1752091910426,0.56923258,111350.0,111340.0,0.08018154]
[1752091910635,0.38063782,111350.0,111340.0,0.96494132]
[1752091910779,0.53743774,111350.0,111340.0,1.0149039]
[1752091910979,0.38961786,111350.0,111340.0,1.0149039]
[1752091911180,0.54637786,111350.0,111340.0,1.02388499]
[1752091911426,0.49637786,111350.0,111340.0,1.00592273]
[1752091911666,0.55535814,111350.0,111340.0,0.80832987]
[1752091911872,0.57331927,111350.0,111340.0,0.80832987]
[1752091912042,0.73497302,111350.0,111340.0,0.45527154]
[1752091912360,0.73497302,111350.0,111340.0,0.34413]
[1752091912569,0.73497302,111350.0,111340.0,0.44965384]
[1752091912917,0.73497302,111350.0,111340.0,0.34413]
[1752091913121,0.73497302,111350.0,111340.0,0.44965384]
[1752091913522,0.73497302,111350.0,111340.0,0.42323943]
[1752091913939,0.55535911,111350.0,111340.0,0.34413]
[1752091914060,0.74395363,111350.0,111340.0,0.44965384]
[1752091914556,0.74395363,111350.0,111340.0,0.34413]
[1752091914831,0.73497335,111350.0,111340.0,0.44965384]
[1752091915007,0.72599291,111350.0,111340.0,0.34104]
[1752091915840,0.72599291,111350.0,111340.0,0.6292838]
[1752091915841,0.28022085,111350.0,111340.0,0.6292838]
[1752091916138,0.23022085,111350.0,111340.0,0.9677618]
[1752091916351,0.21568,111350.0,111340.0,0.9677618]
[1752091916549,0.37224,111350.0,111340.0,0.9677618]
[1752091916779,0.37224,111350.0,111340.0,1.09938347]
[1752091917347,0.37224,111350.0,111340.0,1.09838347]
[1752091917551,0.30218133,111350.0,111340.0,0.50316167]
[1752091917782,0.65831629,111350.0,111340.0,0.57715498]
[1752091917940,0.65831629,111350.0,111340.0,0.44553331]
[1752091918137,0.65831621,111350.0,111340.0,0.44553331]
[1752091918513,0.47870238,111350.0,111340.0,0.44862331]
[1752091918628,0.46972177,111350.0,111340.0,0.99029309]
[1752091918828,0.47200758,111350.0,111340.0,0.99029309]
[1752091919215,0.47200758,111350.0,111340.0,0.9992745]
[1752091919420,0.66060202,111350.0,111340.0,0.80168164]
[1752091919972,0.66060202,111350.0,111340.0,0.44862331]
[1752091919973,0.64264154,111350.0,111340.0,0.44862331]
[1752091920404,0.47200783,111350.0,111340.0,0.53174129]
[1752091920621,0.4630273,111350.0,111340.0,0.89378087]
[1752091920797,0.4630273,111350.0,111340.0,0.8847997]
[1752091920996,0.45404662,111350.0,111340.0,0.89378087]
[1752091921204,0.45388662,111350.0,111340.0,0.92508087]
[1752091921400,0.22396581,111350.0,111340.0,0.9671618]
[1752091921621,0.38032581,111350.0,111340.0,0.9671618]
[1752091921822,0.38930585,111350.0,111340.0,1.09878347]
[1752091922027,0.4128269,111350.0,111340.0,0.91609962]
[1752091922231,0.4628269,111350.0,111340.0,0.91609962]
[1752091922434,0.4538467,111350.0,111340.0,0.93406164]
[1752091922635,0.4538467,111350.0,111340.0,1.23146172]
[1752091922831,0.46282698,111350.0,111340.0,1.23146172]
[1752091923165,0.4538467,111350.0,111340.0,1.23146164]
[1752091923473,0.45384662,111350.0,111340.0,1.23146164]
[1752091923869,0.44486666,111350.0,111340.0,1.23146164]
[1752091924088,0.28850666,111350.0,111340.0,1.26276164]
[1752091924305,0.76579823,111350.0,111340.0,4e-05]
[1752091924505,0.79899823,111350.0,111340.0,4e-05]
[1752091924714,0.79899823,111350.0,111340.0,0.10557457]
[1752091924920,0.79899823,111350.0,111340.0,0.07920245]
[1752091925372,1.21784729,111350.0,111340.0,0.07924245]
[1752091925605,0.86478896,111350.0,111340.0,0.07924245]
[1752091925737,0.86478896,111350.0,111340.0,0.08542721]
[1752091926747,0.79299823,111350.0,111340.0,0.08542721]
[1752091929390,1.14605656,111350.0,111340.0,0.08542721]
[1752091929597,0.31535214,111340.0,111330.0,0.07920245]
[1752091929802,0.74678907,111340.0,111330.0,4e-05]
[1752091930006,1.0998474,111340.0,111330.0,4e-05]
[1752091930203,1.10906188,111340.0,111330.0,4e-05]
[1752091930469,0.92987705,111340.0,111330.0,4e-05]
[1752091930658,1.28293538,111340.0,111330.0,4e-05]
[1752091931099,1.28293538,111340.0,111330.0,0.00104]
[1752091931298,1.28293538,111340.0,111330.0,0.00304]
[1752091931722,1.28293538,111340.0,111330.0,0.00204]
[1752091931942,1.28593538,111340.0,111330.0,0.00204]
[1752091932811,0.93283705,111340.0,111330.0,4e-05]
[1752091933025,1.28589538,111340.0,111330.0,4e-05]
[1752091933233,1.12989538,111340.0,111330.0,4e-05]
[1752091933441,0.90574907,111340.0,111330.0,4e-05]
[1752091933632,0.74978907,111340.0,111330.0,4e-05]
[1752091933834,0.90574907,111340.0,111330.0,4e-05]
[1752091934060,0.71938907,111340.0,111330.0,4e-05]
[1752091934230,0.87534907,111340.0,111330.0,4e-05]
[1752091934447,1.2610074,111340.0,111330.0,4e-05]
[1752091935001,0.90794907,111340.0,111330.0,4e-05]
[1752091935829,0.90790907,111340.0,111330.0,4e-05]
[1752091936346,0.91090907,111340.0,111330.0,4e-05]
[1752091936550,0.53830907,111340.0,111330.0,4e-05]
[1752091937128,0.53530907,111340.0,111330.0,4e-05]
[1752091937384,0.53330907,111340.0,111330.0,4e-05]
[1752091937712,0.37838907,111340.0,111330.0,0.07920245]
[1752091937913,0.33204822,111340.0,111330.0,0.07920245]
[1752091938118,0.49682867,111340.0,111330.0,0.07920245]
[1752091938299,0.47035149,111340.0,111330.0,0.07920245]
[1752091938503,0.15939871,111340.0,111330.0,0.30352076]
[1752091938709,0.51279133,111340.0,111330.0,0.0447123]
[1752091938872,0.33902955,111340.0,111330.0,4e-05]
[1752091939115,0.71046955,111340.0,111330.0,4e-05]
[1752091939308,0.71046955,111340.0,111330.0,0.10757457]
[1752091939509,0.7250104,111340.0,111330.0,0.10757457]
[1752091939982,0.7250104,111340.0,111330.0,0.28722066]
[1752091940206,0.7249704,111340.0,111330.0,0.18168609]
[1752091940444,0.73395189,111340.0,111330.0,0.28822066]
[1752091942274,0.73395189,111340.0,111330.0,0.10857457]
[1752091943007,0.72497064,111340.0,111330.0,0.10857457]
[1752091943563,0.72497064,111340.0,111330.0,0.00304]
[1752091944620,0.72497064,111340.0,111330.0,0.18268609]
[1752091944998,0.56925064,111340.0,111330.0,0.18268609]
[1752091945272,0.54514036,111340.0,111330.0,0.18268609]
[1752091945524,0.72477032,111340.0,111330.0,0.18268609]
[1752091945753,0.54514036,111340.0,111330.0,0.19166831]
[1752091946192,0.54514036,111340.0,111330.0,0.29720296]
[1752091946412,0.72477032,111340.0,111330.0,0.10857457]
[1752091947325,0.72477032,111340.0,111330.0,0.28822066]
[1752091947547,0.71578915,111340.0,111330.0,0.11072457]
[1752091947775,0.71578915,111340.0,111330.0,0.10857457]
[1752091950042,0.71578915,111340.0,111330.0,0.11072457]
[1752091950510,0.56026915,111340.0,111330.0,0.10857457]
[1752091950949,0.71558915,111340.0,111330.0,0.10857457]
[1752091952764,0.74718915,111340.0,111330.0,0.00304]
[1752091952971,0.77918915,111340.0,111330.0,0.00304]
[1752091953330,0.77918915,111340.0,111330.0,0.08219104]
[1752091953552,0.77918915,111340.0,111330.0,0.00922404]
[1752091954181,0.77918915,111340.0,111330.0,0.08839843]
[1752091955298,1.47224748,111340.0,111330.0,0.08839843]
[1752091955518,1.47224748,111340.0,111330.0,0.00922404]
[1752091955769,1.47224748,111340.0,111330.0,0.08839843]
[1752091955988,1.47224748,111340.0,111330.0,0.08739843]
[1752091956414,1.31692748,111340.0,111330.0,0.08739843]
[1752091956628,1.47204748,111340.0,111330.0,0.08540094]
[1752091957132,1.11898915,111340.0,111330.0,0.08540094]
[1752091957344,1.47204748,111340.0,111330.0,0.08540094]
[1752091957544,1.47504748,111340.0,111330.0,0.08540094]
[1752091958363,1.47504748,111340.0,111330.0,0.00622655]
[1752091958769,1.47804748,111340.0,111330.0,0.00622655]
[1752091960027,0.60846908,111330.0,111320.0,0.07921439]
[1752091960226,1.20800434,111330.0,111320.0,0.07934129]
[1752091960489,0.99638294,111330.0,111320.0,1e-08]
[1752091960695,1.34944127,111330.0,111320.0,1e-08]
[1752091960894,1.25800434,111330.0,111320.0,1e-08]
[1752091961319,1.25800434,111330.0,111310.0,4e-05]
[1752091961320,0.31851992,111300.0,111290.0,0.11094287]
[1752091961522,0.91797518,111300.0,111290.0,0.0053336]
[1752091961807,0.91797518,111300.0,111280.0,4e-05]
[1752091961808,0.65853688,111290.0,111280.0,4e-05]
[1752091962061,0.65855383,111280.0,111270.0,1e-08]
[1752091962271,1.47372909,111280.0,111270.0,1e-08]
[1752091962478,1.47368909,111280.0,111270.0,1e-08]
[1752091962857,1.50084134,111280.0,111270.0,1e-08]
[1752091963071,0.25330473,111250.0,111240.0,0.00266366]
[1752091963272,0.53266166,111250.0,111240.0,0.00047005]
[1752091963517,0.87266166,111250.0,111240.0,1e-08]
[1752091964129,0.63474166,111250.0,111240.0,1e-08]
[1752091964308,0.71542166,111250.0,111240.0,0.42777907]
[1752091964670,0.54596081,111250.0,111240.0,0.49267907]
[1752091964841,0.70088081,111250.0,111240.0,0.49267907]
[1752091965074,0.70088081,111250.0,111240.0,0.13962074]
[1752091965209,0.54596081,111250.0,111240.0,0.13962074]
[1752091965408,0.45452388,111250.0,111240.0,0.49267907]
[1752091965613,0.61839256,111250.0,111240.0,0.49267907]
[1752091966215,0.62394481,111250.0,111240.0,0.42088834]
[1752091966409,0.62394481,111250.0,111240.0,0.06783001]
[1752091966624,0.62390481,111250.0,111240.0,0.42088834]
[1752091966845,0.62390481,111250.0,111240.0,0.41988834]
[1752091967047,0.62390481,111250.0,111240.0,0.42088834]
[1752091967288,0.62390481,111250.0,111240.0,0.42288834]
[1752091967497,0.47805325,111250.0,111240.0,0.62065843]
[1752091967625,0.63289317,111250.0,111240.0,0.42288834]
[1752091967826,0.5694901,111250.0,111240.0,0.03665909]
[1752091968035,0.7243301,111250.0,111240.0,0.03665909]
[1752091971156,0.71379412,111250.0,111240.0,0.03665909]
[1752091972471,0.71379412,111250.0,111240.0,0.03872909]
[1752091973603,0.71379412,111250.0,111240.0,0.62974659]
[1752091973604,0.20522402,111250.0,111240.0,0.62974659]
[1752091973803,0.34515477,111250.0,111240.0,0.98073492]
[1752091974054,0.39515477,111250.0,111240.0,0.62767659]
[1752091974808,0.41313099,111250.0,111240.0,0.62667659]
[1752091975003,0.41313091,111250.0,111240.0,0.62667659]
[1752091975244,0.34515477,111250.0,111240.0,0.96467659]
[1752091975445,0.19047477,111250.0,111240.0,1.11467659]
[1752091975649,0.19047477,111250.0,111240.0,1.46497583]
[1752091975856,0.34507477,111250.0,111240.0,1.46790583]
[1752091976261,0.34507477,111250.0,111240.0,1.1178475]
[1752091976493,0.34507477,111250.0,111240.0,1.1208475]
[1752091976985,0.19047477,111250.0,111240.0,1.1208475]
[1752091977124,0.34503477,111250.0,111240.0,1.1208475]
[1752091977540,0.19047477,111250.0,111240.0,2.68288583]
[1752091977753,0.06454085,111270.0,111260.0,0.20879201]
[1752091977955,0.45287409,111270.0,111260.0,0.62708034]
[1752091978663,0.47084781,111270.0,111260.0,0.62708034]
[1752091978851,0.31628781,111270.0,111260.0,0.61809295]
[1752091979024,0.45283425,111270.0,111260.0,0.61809295]
[1752091979225,0.45283425,111270.0,111260.0,0.27402201]
[1752091979226,0.46182123,111270.0,111260.0,0.27402201]
[1752091979437,0.29831425,111270.0,111260.0,0.27402201]
[1752091979648,0.28034085,111270.0,111260.0,0.62908034]
[1752091979846,0.2158,111270.0,111260.0,0.96908034]
[1752091980062,0.37028,111270.0,111260.0,0.96908034]
[1752091980388,0.2158,111270.0,111260.0,0.96908034]
[1752091980634,0.37024,111270.0,111260.0,1.77533734]
[1752091981063,0.37024,111270.0,111260.0,1.77305153]
[1752091981268,0.35970674,111270.0,111260.0,1.75980453]
[1752091981814,0.19052017,111270.0,111260.0,1.75980453]
[1752091982009,0.19052017,111270.0,111260.0,1.90980453]
[1752091982010,0.34492017,111270.0,111260.0,1.90980453]
[1752091982915,0.19052017,111270.0,111260.0,1.90580453]
[1752091983118,0.01454085,111290.0,111280.0,0.27358485]
[1752091983341,0.0667938,111300.0,111290.0,0.23923628]
[1752091983570,0.236869,111300.0,111290.0,0.62662461]
[1752091983968,0.21890085,111300.0,111290.0,0.27356628]
[1752091984178,0.21890085,111300.0,111280.0,0.19769827]
[1752091984179,0.28986851,111300.0,111280.0,0.22467927]
[1752091984390,0.77117021,111290.0,111280.0,0.026981]
[1752091984552,0.01797485,111260.0,111250.0,0.3]
[1752091984780,0.41884866,111260.0,111250.0,0.3]
[1752091984986,0.41659571,111260.0,111250.0,0.3]
[1752091985626,0.26227571,111260.0,111250.0,0.3]
[1752091985829,0.50799264,111260.0,111250.0,0.3]
[1752091986054,0.50047509,111260.0,111250.0,0.3]
[1752091986266,0.50047509,111260.0,111250.0,1.08032364]
[1752091986267,0.01601109,111260.0,111250.0,1.08032364]
[1752091986474,0.00147024,111260.0,111250.0,2.73855892]
[1752091986676,0.00147024,111260.0,111250.0,3.01227834]
[1752091987024,0.00147024,111260.0,111250.0,2.82999585]
[1752091987222,0.00147024,111260.0,111250.0,3.22999585]
[1752091987428,0.05438085,111270.0,111260.0,0.27032201]
[1752091987668,0.0501,111290.0,111280.0,0.20668485]
[1752091987850,0.2042,111290.0,111280.0,0.93513318]
[1752091988049,0.05,111290.0,111280.0,0.93513318]
[1752091988250,0.36454166,111310.0,111300.0,0.19766371]
[1752091988583,0.36454166,111310.0,111300.0,0.18867915]
[1752091988584,0.78985696,111310.0,111300.0,0.18867915]
[1752091988786,0.6011946,111310.0,111300.0,0.20664771]
[1752091988925,0.60675186,111310.0,111300.0,0.56913746]
[1752091989123,0.42902766,111310.0,111300.0,0.56913746]
[1752091989325,0.43792686,111310.0,111300.0,0.56913746]
[1752091989763,0.42894327,111310.0,111300.0,0.21607913]
[1752091989982,0.4379267,111310.0,111300.0,0.57313746]
[1752091990181,0.44348412,111310.0,111300.0,0.57313746]
[1752091990476,0.28034085,111310.0,111300.0,0.57632746]
[1752091990821,0.43446085,111310.0,111300.0,0.57632746]
[1752091991487,0.43446085,111310.0,111300.0,0.22326913]
[1752091991689,0.43446085,111310.0,111300.0,0.57632746]
[1752091992185,0.43442085,111310.0,111300.0,0.57932746]
[1752091992389,0.52595778,111310.0,111300.0,0.18669451]
[1752091992589,0.76538692,111310.0,111300.0,0.19567915]
[1752091992811,0.8599943,111310.0,111300.0,0.007]
[1752091993016,0.85101071,111310.0,111300.0,0.007]
[1752091993354,0.85101071,111310.0,111300.0,0.00704]
[1752091995032,0.77921998,111310.0,111300.0,0.00704]
[1752091997238,1.13227831,111310.0,111300.0,0.00704]
[1752091997450,1.13227831,111310.0,111300.0,0.00304]
[1752091997653,0.59321992,111300.0,111290.0,4e-05]
[1752091997895,1.12771154,111300.0,111290.0,4e-05]
[1752091998652,0.74705685,111300.0,111290.0,4e-05]
[1752091998898,0.54098133,111300.0,111290.0,4e-05]
[1752091999099,0.54098133,111300.0,111290.0,0.18873603]
[1752091999100,0.6911852,111300.0,111290.0,0.18873603]
[1752091999263,0.6911852,111300.0,111290.0,0.18873611]
[1752091999461,0.33288601,111300.0,111290.0,0.1977214]
[1752091999666,0.5305494,111300.0,111290.0,0.1977214]
[1752091999885,0.51258117,111300.0,111290.0,0.1977214]
[1752092000084,0.19501522,111300.0,111290.0,0.20670644]
[1752092000286,0.34575514,111300.0,111290.0,0.56974973]
[1752092000492,0.52645021,111300.0,111290.0,0.55177973]
[1752092000698,0.51756589,111300.0,111290.0,0.1987214]
[1752092000897,0.50758149,111300.0,111290.0,0.18973611]
[1752092001114,0.50758149,111300.0,111290.0,0.20970677]
[1752092001330,0.50758149,111300.0,111290.0,0.21669198]
[1752092001522,0.32788698,111300.0,111290.0,0.21569198]
[1752092001706,0.32778698,111300.0,111290.0,0.22867653]
[1752092002090,0.35364149,111300.0,111290.0,0.00404]
[1752092002333,0.30987778,111300.0,111290.0,0.21070628]
[1752092002531,0.15597778,111300.0,111290.0,0.56695461]
[1752092002655,0.30973778,111300.0,111290.0,0.56695461]
[1752092003524,0.31872177,111300.0,111290.0,0.56695461]
[1752092003744,0.30973778,111300.0,111290.0,0.59855461]
[1752092003920,0.30969778,111300.0,111290.0,0.59855461]
[1752092004315,0.21826085,111300.0,111290.0,0.59855461]
[1752092004621,0.05,111300.0,111290.0,0.61966883]
[1752092004854,0.20368,111300.0,111290.0,0.61966883]
[1752092005050,0.20368,111300.0,111290.0,0.64664883]
[1752092005474,0.21822085,111300.0,111290.0,0.64664883]
[1752092005950,0.16822085,111300.0,111290.0,0.64664883]
[1752092006191,0.2658,111310.0,111300.0,0.27153771]
[1752092006398,0.54338456,111310.0,111300.0,0.19766355]
[1752092006570,0.73214724,111310.0,111300.0,0.19766339]
[1752092006817,0.73214716,111310.0,111300.0,0.19766355]
[1752092007019,0.74113107,111310.0,111300.0,0.19766355]
[1752092007221,0.06796856,111300.0,111290.0,0.19772099]
[1752092007440,0.15267387,111300.0,111290.0,0.20670595]
[1752092007640,0.14368988,111300.0,111290.0,0.55976428]
[1752092007843,0.17064259,111300.0,111290.0,0.55976428]
[1752092008337,0.16265811,111300.0,111290.0,0.56576428]
[1752092008539,0.16265811,111300.0,111290.0,0.90576428]
[1752092008956,0.36930622,111300.0,111290.0,0.54372099]
[1752092009160,0.36372589,111300.0,111290.0,0.00904]
[1752092009359,0.38524157,111300.0,111290.0,0.00904]
[1752092009567,0.38524157,111300.0,111290.0,0.20672156]
[1752092009568,0.35474157,111300.0,111290.0,0.20672156]
[1752092009773,0.35474157,111300.0,111290.0,0.21570685]
[1752092009966,0.1839313,111300.0,111290.0,0.58673518]
[1752092010349,0.1839313,111300.0,111290.0,0.22469189]
[1752092010553,0.35474149,111300.0,111290.0,0.34904]
[1752092011303,0.34575693,111300.0,111290.0,0.34904]
[1752092012146,0.37795693,111300.0,111290.0,0.00904]
[1752092012337,0.38694133,111300.0,111290.0,0.18875066]
[1752092012597,0.15142101,111300.0,111290.0,0.57195461]
[1752092012810,0.001,111300.0,111290.0,0.78455461]
[1752092013008,0.15444,111300.0,111290.0,0.78455461]
[1752092013430,0.15444,111300.0,111290.0,0.45847428]
[1752092013564,0.15344,111300.0,111290.0,0.45247428]
[1752092013762,0.15344,111300.0,111290.0,0.80553261]
[1752092014197,0.20344,111300.0,111290.0,0.62323261]
[1752092014398,0.22896493,111300.0,111290.0,0.55396965]
[1752092014600,0.06954085,111300.0,111290.0,0.56295461]
[1752092014803,0.005,111300.0,111290.0,0.62555461]
[1752092015056,0.15536,111300.0,111290.0,0.62555461]
[1752092015259,0.16990085,111300.0,111290.0,0.96555461]
[1752092015413,0.17290085,111300.0,111290.0,0.96555461]
[1752092015783,0.01754085,111300.0,111290.0,0.96555461]
[1752092015959,0.008,111300.0,111290.0,1.11555461]
[1752092016232,0.16132,111300.0,111290.0,1.11555461]
[1752092016634,0.008,111300.0,111290.0,1.11555461]
[1752092016833,0.16132,111300.0,111290.0,1.11555461]
[1752092017274,0.15332,111300.0,111290.0,1.11555461]
[1752092017482,0.01454085,111310.0,111300.0,0.42293771]
[1752092017693,0.05,111320.0,111310.0,0.57892914]
[1752092017895,0.20324,111320.0,111310.0,0.96572747]
[1752092018220,0.21778085,111320.0,111310.0,0.96572747]
[1752092018825,0.21778085,111320.0,111310.0,0.96512747]
[1752092019039,0.21804581,111330.0,111320.0,0.76145058]
[1752092019242,0.37138687,111330.0,111320.0,1.12756724]
[1752092019432,0.23272772,111330.0,111320.0,1.12756724]
[1752092019631,0.38592772,111330.0,111320.0,1.46756724]
[1752092019934,0.21818687,111330.0,111320.0,1.89521324]
[1752092020109,0.37138687,111330.0,111320.0,1.89521324]
[1752092020524,0.37138687,111330.0,111320.0,1.70008424]
[1752092020726,0.37138687,111330.0,111320.0,1.70108424]
[1752092020927,0.00242687,111330.0,111320.0,1.70108424]
[1752092021134,0.15558687,111330.0,111320.0,1.70108424]
[1752092021345,0.01983445,111340.0,111330.0,0.42493203]
[1752092021564,0.17299445,111340.0,111330.0,0.77799036]
[1752092021770,0.17295445,111340.0,111330.0,1.58065136]
[1752092021921,0.22295445,111340.0,111330.0,0.77799036]
[1752092022941,0.22291445,111340.0,111330.0,0.77799036]
[1752092023140,0.22291445,111340.0,111330.0,0.80595936]
[1752092023344,0.0052936,111340.0,111330.0,2.62441029]
[1752092023588,0.1583736,111340.0,111330.0,2.62441029]
[1752092024249,0.1583336,111340.0,111330.0,1.99763529]
[1752092024463,0.1583336,111340.0,111330.0,1.99963529]
[1752092025021,0.002,111360.0,111350.0,1.26071892]
[1752092025311,0.002,111360.0,111350.0,0.89415325]
[1752092025312,0.155,111360.0,111350.0,0.89415325]
[1752092025548,0.16954085,111360.0,111350.0,0.89415325]
[1752092025763,0.002,111360.0,111350.0,3.03587058]
[1752092025982,1e-08,111360.0,111350.0,3.46436751]
[1752092026215,0.0004,111370.0,111360.0,0.27043638]
[1752092026432,0.16804199,111370.0,111360.0,0.97655304]
[1752092026643,0.16804199,111370.0,111360.0,1.11516304]
[1752092026850,0.16804199,111370.0,111360.0,0.60847583]
[1752092027061,0.21800199,111370.0,111360.0,0.89959471]
[1752092027270,0.10099707,111370.0,111360.0,0.89959471]
[1752092027505,0.43575159,111370.0,111360.0,0.89061539]
[1752092027714,0.24493792,111370.0,111360.0,0.90059471]
[1752092027941,0.21800199,111370.0,111360.0,0.90059471]
[1752092028373,0.21800199,111370.0,111360.0,1.25659304]
[1752092028616,0.16800199,111370.0,111360.0,1.32089304]
[1752092029104,0.16800199,111370.0,111360.0,1.33036067]
[1752092029316,0.16800199,111370.0,111360.0,1.53408867]
[1752092029528,0.16800199,111370.0,111360.0,1.53868266]
[1752092029726,0.16800199,111370.0,111360.0,1.56510188]
[1752092030877,0.01508199,111370.0,111360.0,1.53868266]
[1752092031139,0.16788199,111370.0,111360.0,1.43539966]
[1752092031769,0.16788199,111370.0,111360.0,1.78517366]
[1752092031918,0.16788199,111370.0,111360.0,1.93517366]
[1752092032327,0.16788199,111370.0,111360.0,1.74804166]
[1752092032996,0.15334114,111370.0,111360.0,1.74804166]
[1752092033322,0.15334114,111370.0,111360.0,1.64300267]
[1752092033542,0.15322114,111370.0,111360.0,1.89804166]
[1752092033749,0.00054114,111370.0,111360.0,1.89804166]
[1752092033951,0.0052936,111380.0,111370.0,0.54651782]
[1752092034331,0.15844395,111380.0,111370.0,1.62587815]
[1752092035105,0.15844395,111380.0,111370.0,1.62687815]
[1752092035309,0.00576395,111380.0,111370.0,1.71831508]
[1752092035492,0.15840395,111380.0,111370.0,1.71831508]
[1752092036465,0.14942506,111380.0,111370.0,1.71831508]
[1752092036629,0.004,111400.0,111390.0,0.54942075]
[1752092036812,0.1566,111400.0,111390.0,1.28553741]
[1752092037217,0.2213736,111410.0,111400.0,0.88160221]
[1752092037416,0.37407462,111410.0,111400.0,1.62001887]
[1752092037620,0.15839462,111410.0,111400.0,1.62001887]
[1752092038376,0.15839462,111410.0,111400.0,0.91390221]
[1752092038517,0.02037547,111410.0,111400.0,1.62001887]
[1752092038700,0.0004,111420.0,111410.0,0.54938368]
[1752092038932,0.15292,111420.0,111410.0,0.93424201]
[1752092039487,0.15292,111420.0,111410.0,1.74704301]
[1752092039679,0.0004,111430.0,111420.0,0.69642514]
[1752092039859,0.0004,111430.0,111420.0,1.89045447]
[1752092040095,0.0004,111430.0,111420.0,1.77255447]
[1752092040275,0.05897456,111420.0,111410.0,0.17951709]
[1752092040478,0.23351356,111420.0,111410.0,0.17951709]
[1752092040678,0.09614085,111410.0,111400.0,0.5583787]
[1752092040880,0.13641686,111400.0,111380.0,0.17955094]
[1752092041084,0.2508338,111390.0,111380.0,0.55968396]
[1752092041341,0.24858085,111390.0,111380.0,0.19764793]
[1752092041478,0.52854385,111390.0,111380.0,0.18867007]
[1752092041705,0.56892163,111390.0,111380.0,0.00014102]
[1752092041895,0.56892163,111390.0,111380.0,0.17970647]
[1752092042199,0.56892163,111390.0,111380.0,0.00014102]
[1752092042200,0.78448163,111390.0,111380.0,0.00014102]
[1752092042385,0.79648163,111390.0,111380.0,0.00114102]
[1752092042596,0.78448163,111390.0,111380.0,0.00014102]
[1752092042885,0.57353182,111390.0,111380.0,0.5507211]
[1752092043044,0.72348163,111390.0,111380.0,0.69319935]
[1752092043292,0.72348163,111390.0,111380.0,0.00014102]
[1752092043293,0.78938163,111390.0,111380.0,0.00014102]
[1752092043503,0.78938163,111390.0,111380.0,0.18868474]
[1752092043706,0.78040449,111390.0,111380.0,0.00014102]
[1752092043899,0.78028449,111390.0,111380.0,0.19766277]
[1752092044109,0.78038449,111390.0,111380.0,0.20664072]
[1752092044228,0.79833909,111390.0,111380.0,0.20664072]
[1752092044427,0.79833909,111390.0,111380.0,0.21561858]
[1752092044884,0.79833909,111390.0,111380.0,0.19766277]
[1752092045086,0.78038457,111390.0,111380.0,8.202e-05]
[1752092045290,0.78038457,111390.0,111380.0,0.19760393]
[1752092045464,0.78038457,111390.0,111380.0,0.20658204]
[1752092045652,0.78138457,111390.0,111380.0,0.20658204]
[1752092046135,0.78138457,111390.0,111380.0,0.19760393]
[1752092046336,0.78138457,111390.0,111380.0,0.20658204]
[1752092046574,0.78138457,111390.0,111380.0,0.21556007]
[1752092046985,0.78138457,111390.0,111380.0,0.20658204]
[1752092047208,0.78138457,111390.0,111380.0,0.21556007]
[1752092047435,0.78138457,111390.0,111380.0,8.202e-05]
[1752092047641,0.44951452,111390.0,111380.0,0.54168407]
[1752092047838,0.61073198,111390.0,111380.0,0.5327058]
[1752092048041,0.41691452,111390.0,111380.0,0.55963964]
[1752092048244,0.78461241,111390.0,111380.0,0.55066194]
[1752092048467,0.60506292,111390.0,111380.0,0.56861742]
[1752092048670,0.4348684,111390.0,111380.0,0.56861742]
[1752092048867,0.41044554,111390.0,111380.0,0.56861742]
[1752092049099,0.5857688,111390.0,111380.0,0.5596398]
[1752092049304,0.57679166,111390.0,111380.0,0.5686175]
[1752092049797,0.57679182,111390.0,111380.0,0.5596398]
[1752092049982,0.57679182,111390.0,111380.0,0.55963964]
[1752092050327,0.52673778,111390.0,111380.0,0.89963964]
[1752092050752,0.21856,111390.0,111380.0,0.90276964]
[1752092050952,0.37072,111390.0,111380.0,0.90276964]
[1752092051356,0.23010085,111390.0,111380.0,0.90276964]
[1752092051573,0.38222085,111390.0,111380.0,0.93576964]
[1752092051995,0.21556,111390.0,111380.0,1.11806964]
[1752092052170,0.37368,111390.0,111380.0,1.37943464]
[1752092052377,0.39222085,111390.0,111380.0,1.37943464]
[1752092052583,0.39222085,111390.0,111380.0,1.13166262]
[1752092052944,0.39218085,111390.0,111380.0,1.13166262]
[1752092053758,0.39218085,111390.0,111380.0,1.35629862]
[1752092053977,0.39218085,111390.0,111380.0,1.30920564]
[1752092054389,0.06454085,111400.0,111390.0,0.89961075]
[1752092054597,0.21658085,111400.0,111390.0,1.7477204]
[1752092054793,0.06454085,111400.0,111390.0,1.7477204]
[1752092055062,0.16654085,111400.0,111390.0,1.7477204]
[1752092055658,0.16654085,111400.0,111390.0,0.62547374]
[1752092055659,0.06454085,111400.0,111390.0,0.62547374]
[1752092055964,0.22254085,111400.0,111390.0,0.89953908]
[1752092056145,0.25544085,111400.0,111390.0,0.89953908]
[1752092056374,0.26441678,111400.0,111390.0,0.89953908]
[1752092056507,0.22254085,111400.0,111390.0,0.89953908]
[1752092056918,0.22254085,111400.0,111390.0,0.97853207]
[1752092057120,0.02054085,111400.0,111390.0,0.98166207]
[1752092057325,0.02054085,111400.0,111390.0,1.5483804]
[1752092057576,0.17246085,111400.0,111390.0,1.5483804]
[1752092057740,0.15792,111400.0,111390.0,1.8983804]
[1752092057939,0.05225295,111420.0,111410.0,0.20644368]
[1752092058141,0.20192,111420.0,111410.0,1.1285914]
[1752092058479,0.21646085,111420.0,111410.0,1.1285914]
[1752092058826,0.21646085,111420.0,111410.0,1.1317214]
[1752092059028,0.21646085,111420.0,111410.0,1.1285914]
[1752092059226,0.21646085,111420.0,111410.0,1.1337214]